bitfinex-derivatives/quotes_BTCF0:USTF0_20251208
["timestamp","ask_amount","ask_price","bid_price","bid_amount"]
[1765227679617,0.0824081,90753.0,90752.0,0.07077]
[1765227680723,0.0824081,90753.0,90752.0,0.0367]
[1765227680924,0.24781133,90760.0,90744.0,0.031989]
[1765227680925,0.07139,90745.0,90744.0,0.102759]
[1765227681414,0.0465782,90752.0,90751.0,0.07077]
[1765227681613,0.0844077,90756.0,90755.0,0.07077]
[1765227681815,0.11062368,90756.0,90755.0,0.07077]
[1765227682314,0.0844077,90756.0,90755.0,0.07077]
[1765227682514,0.0844077,90756.0,90751.0,0.0817882]
[1765227682515,0.07139,90752.0,90751.0,0.0817882]
[1765227684222,0.07239,90752.0,90751.0,0.0817882]
[1765227685714,0.07139,90752.0,90751.0,0.0817882]
[1765227685916,0.07239,90752.0,90751.0,0.0817882]
[1765227686115,0.001,90752.0,90751.0,0.0817882]
[1765227686518,0.03572527,90762.0,90761.0,0.081787]
[1765227686930,0.00016527,90762.0,90761.0,0.081787]
[1765227688026,0.03556,90784.0,90783.0,0.07077]
[1765227688224,0.07139,90784.0,90783.0,0.07077]
[1765227689328,0.07139,90784.0,90783.0,0.0817843]
[1765227689724,0.07139,90784.0,90783.0,0.08163986]
[1765227690126,0.07439,90784.0,90783.0,0.08163986]
[1765227690930,0.09427,90776.0,90775.0,0.07077]
[1765227691229,0.09427,90776.0,90774.0,0.00016527]
[1765227691230,0.003,90784.0,90783.0,0.07077]
[1765227691423,0.03856,90784.0,90783.0,0.07077]
[1765227691622,0.07439,90784.0,90783.0,0.07077]
[1765227691931,0.07139,90784.0,90783.0,0.07077]
[1765227693031,0.07439,90784.0,90783.0,0.07077]
[1765227693622,0.07439,90784.0,90775.0,0.01077381]
[1765227693623,0.02588,90784.0,90778.0,0.0817849]
[1765227693831,0.07139,90779.0,90778.0,0.0817849]
[1765227694720,0.07139,90779.0,90778.0,0.07077]
[1765227695625,0.07339,90779.0,90778.0,0.07077]
[1765227696424,0.002,90779.0,90778.0,0.07077]
[1765227696827,0.01117847,90793.0,90776.0,0.0310651]
[1765227696828,0.08256847,90793.0,90792.0,0.08218]
[1765227697031,0.08256847,90793.0,90792.0,0.07077]
[1765227697333,0.08256847,90793.0,90792.0,0.0367]
[1765227697628,0.08256847,90793.0,90792.0,0.09359]
[1765227698024,0.08556847,90793.0,90792.0,0.09359]
[1765227698627,0.08556847,90793.0,90792.0,0.1046032]
[1765227699729,0.08556847,90793.0,90792.0,0.07077]
[1765227699929,0.0824051,90777.0,90776.0,0.07077]
[1765227700629,0.0824053,90775.0,90765.0,0.0110164]
[1765227700824,0.0824053,90775.0,90767.0,0.0110162]
[1765227701028,0.0824053,90775.0,90769.0,0.011016]
[1765227701223,0.0824053,90775.0,90774.0,0.03686527]
[1765227702233,0.0834053,90775.0,90774.0,0.03686527]
[1765227702831,0.0824053,90775.0,90774.0,0.03686527]
[1765227703033,0.0834053,90775.0,90774.0,0.03686527]
[1765227703628,0.0795075,90757.0,90756.0,0.067]
[1765227703828,0.1011282,90752.0,90751.0,0.03446]
[1765227704027,0.0795082,90752.0,90751.0,0.03446]
[1765227704325,0.0795082,90752.0,90751.0,0.067]
[1765227705039,0.0795082,90752.0,90751.0,0.07794467]
[1765227705734,0.0795082,90752.0,90751.0,0.07894467]
[1765227705930,0.02002,90760.0,90751.0,0.07894467]
[1765227705931,0.06849,90760.0,90759.0,0.0780173]
[1765227706322,0.06849,90760.0,90759.0,0.067]
[1765227706526,0.09011,90760.0,90759.0,0.067]
[1765227706934,0.09011,90760.0,90759.0,0.03446]
[1765227707838,0.0795081,90752.0,90751.0,0.0780181]
[1765227708024,0.06849,90752.0,90751.0,0.08916779]
[1765227708226,0.0367,90752.0,90751.0,0.08916779]
[1765227708427,0.0110175,90758.0,90757.0,0.0110175]
[1765227708634,0.06849,90758.0,90757.0,0.0780175]
[1765227708835,0.001,90760.0,90759.0,0.067]
[1765227709034,0.00016527,90761.0,90760.0,0.0991271]
[1765227713040,0.02516527,90761.0,90760.0,0.0991271]
[1765227714434,0.02516527,90761.0,90760.0,0.1001271]
[1765227715029,0.00016527,90761.0,90760.0,0.1001271]
[1765227715234,0.02516527,90761.0,90760.0,0.1001271]
[1765227715632,0.06865527,90761.0,90760.0,0.068]
[1765227715830,0.09365527,90761.0,90760.0,0.068]
[1765227716237,0.06865527,90761.0,90760.0,0.068]
[1765227716538,0.02516527,90761.0,90760.0,0.08811]
[1765227716839,0.02516527,90761.0,90760.0,0.08911]
[1765227717438,0.02616527,90761.0,90760.0,0.08811]
[1765227718232,0.02516527,90761.0,90760.0,0.08911]
[1765227718436,0.06849,90784.0,90783.0,0.0780143]
[1765227718636,0.02592691,90784.0,90783.0,0.0780143]
[1765227718845,0.0795038,90788.0,90787.0,0.067]
[1765227719035,0.10542904,90788.0,90787.0,0.067]
[1765227719441,0.0795038,90788.0,90787.0,0.067]
[1765227720334,0.06849,90788.0,90787.0,0.067]
[1765227720747,0.07149,90788.0,90787.0,0.067]
[1765227721135,0.09649,90788.0,90787.0,0.069]
[1765227721638,0.09649,90788.0,90787.0,0.002]
[1765227721839,0.12240995,90788.0,90787.0,0.002]
[1765227722038,0.09649,90788.0,90787.0,0.002]
[1765227723039,0.06352,90779.0,90778.0,0.00016527]
[1765227723241,0.0745348,90779.0,90778.0,0.00016527]
[1765227723440,0.0745348,90779.0,90778.0,0.03235527]
[1765227724347,0.0965348,90779.0,90778.0,0.03435527]
[1765227725044,0.0965348,90779.0,90778.0,0.06519527]
[1765227727451,0.08552,90779.0,90778.0,0.06519527]
[1765227729351,0.022,90779.0,90778.0,0.06519527]
[1765227729847,0.0209999,90779.0,90778.0,0.06519527]
[1765227730651,0.0209999,90779.0,90778.0,0.18639527]
[1765227730846,0.01252421,90779.0,90778.0,0.18639527]
[1765227734564,0.07276421,90779.0,90778.0,0.18639527]
[1765227734745,0.07276421,90779.0,90778.0,0.12336527]
[1765227736351,0.07276421,90779.0,90778.0,0.00216527]
[1765227736745,0.04308421,90779.0,90778.0,0.06623527]
[1765227737250,0.01252421,90779.0,90778.0,0.06623527]
[1765227738150,0.07276421,90779.0,90778.0,0.06623527]
[1765227738854,0.07276421,90779.0,90778.0,0.00216527]
[1765227741154,0.07276421,90779.0,90778.0,0.06623527]
[1765227741355,0.07276421,90779.0,90778.0,0.03490527]
[1765227741552,0.07276421,90779.0,90778.0,0.00216527]
[1765227743158,0.07276421,90779.0,90778.0,0.03490527]
[1765227743347,0.07276421,90779.0,90778.0,0.06623527]
[1765227745759,0.01252421,90779.0,90778.0,0.06623527]
[1765227747049,0.04308421,90779.0,90778.0,0.06623527]
[1765227747249,0.07276421,90779.0,90778.0,0.06623527]
[1765227748254,0.07276421,90779.0,90778.0,0.18743527]
[1765227749362,0.01252421,90779.0,90778.0,0.18743527]
[1765227750863,0.06040527,90797.0,90796.0,0.0750828]
[1765227751157,0.00016527,90797.0,90796.0,0.0750828]
[1765227752065,0.00416527,90797.0,90796.0,0.0750828]
[1765227752249,0.00416527,90797.0,90796.0,0.0760828]
[1765227752453,0.02116527,90797.0,90796.0,0.0760828]
[1765227752864,0.01616527,90797.0,90796.0,0.0760828]
[1765227753565,0.01216527,90797.0,90796.0,0.0760828]
[1765227755265,0.07240527,90797.0,90796.0,0.001]
[1765227755457,0.08341787,90797.0,90796.0,0.001]
[1765227755856,0.10922289,90797.0,90796.0,0.001]
[1765227756362,0.0712534,90792.0,90791.0,0.03274]
[1765227756964,0.06024,90784.0,90776.0,0.5435951]
[1765227757269,0.06024,90784.0,90783.0,0.06407]
[1765227757452,0.06024,90784.0,90783.0,0.08285]
[1765227757854,0.03056,90788.0,90787.0,0.06407]
[1765227758061,0.0415733,90792.0,90791.0,0.06407]
[1765227758367,0.0712533,90792.0,90791.0,0.06407]
[1765227759556,0.0772533,90792.0,90791.0,0.06407]
[1765227761067,0.0782533,90792.0,90791.0,0.06407]
[1765227761870,0.0742533,90792.0,90791.0,0.06407]
[1765227762560,0.003,90792.0,90791.0,0.06407]
[1765227763771,0.002,90792.0,90791.0,0.06407]
[1765227764774,0.00016527,90797.0,90796.0,0.06043]
[1765227765969,0.00016527,90797.0,90796.0,0.0714428]
[1765227766171,0.00016527,90797.0,90796.0,0.1926428]
[1765227768576,0.05956527,90797.0,90796.0,0.18163]
[1765227770082,0.03148527,90797.0,90796.0,0.18163]
[1765227770282,0.00016527,90797.0,90796.0,0.18163]
[1765227772476,0.00016527,90797.0,90796.0,0.18263]
[1765227772978,0.0704113,90808.0,90807.0,0.06043]
[1765227773182,0.09963146,90808.0,90807.0,0.06043]
[1765227773581,0.0423313,90808.0,90807.0,0.06043]
[1765227773772,0.0704113,90808.0,90807.0,0.06043]
[1765227774779,0.0714113,90808.0,90807.0,0.06043]
[1765227774971,0.0734113,90808.0,90807.0,0.06043]
[1765227775874,0.0734113,90808.0,90807.0,0.07137125]
[1765227776080,0.0624,90808.0,90807.0,0.07137125]
[1765227776477,0.003,90808.0,90807.0,0.07137125]
[1765227777272,0.003,90808.0,90807.0,0.19257125]
[1765227782379,0.00016527,90817.0,90816.0,0.0685503]
[1765227782585,0.0685688,90829.0,90828.0,0.05754]
[1765227782793,0.0685688,90829.0,90825.0,0.01045]
[1765227782794,0.08713468,90842.0,90841.0,0.05754]
[1765227783092,0.08713468,90842.0,90832.0,0.01628]
[1765227783093,0.05756,90833.0,90832.0,0.23944553]
[1765227783285,0.05756,90833.0,90832.0,0.05754]
[1765227783683,0.05756,90833.0,90832.0,0.07382]
[1765227784293,0.06256,90833.0,90832.0,0.07382]
[1765227784484,0.005,90833.0,90832.0,0.07382]
[1765227785080,0.008,90833.0,90832.0,0.07382]
[1765227786085,0.03625,90833.0,90832.0,0.07382]
[1765227787084,0.008,90833.0,90832.0,0.07382]
[1765227787290,0.00016517,90842.0,90832.0,0.07382]
[1765227787291,0.00016517,90842.0,90841.0,0.0685473]
[1765227787977,0.0403153,90858.0,90857.0,0.05754]
[1765227788182,0.08670541,90858.0,90857.0,0.05754]
[1765227788407,0.02825,90858.0,90857.0,0.05754]
[1765227788589,0.00110054,90865.0,90864.0,0.07382]
[1765227788779,0.00110054,90865.0,90864.0,0.0848245]
[1765227790492,0.00410054,90865.0,90864.0,0.0848245]
[1765227791191,0.00510054,90865.0,90864.0,0.0848245]
[1765227794295,0.00510054,90865.0,90855.0,0.00016517]
[1765227794296,0.074,90856.0,90855.0,0.00016517]
[1765227794589,0.0271,90861.0,90860.0,0.05513]
[1765227794788,0.05612,90861.0,90860.0,0.05513]
[1765227795190,0.00510054,90865.0,90864.0,0.01794]
[1765227795385,0.00510054,90865.0,90864.0,0.0840745]
[1765227795585,0.03220054,90865.0,90864.0,0.0840745]
[1765227795786,0.05822054,90865.0,90864.0,0.0840745]
[1765227796186,0.05722054,90865.0,90864.0,0.0840745]
[1765227796388,0.00110054,90865.0,90864.0,0.0840745]
[1765227796698,0.00310054,90865.0,90864.0,0.0840745]
[1765227796887,0.05922054,90865.0,90864.0,0.0840745]
[1765227797198,0.00510054,90865.0,90864.0,0.0840745]
[1765227797795,0.00016517,90874.0,90873.0,0.0789734]
[1765227799496,0.00116517,90874.0,90873.0,0.0789734]
[1765227800300,0.00116517,90874.0,90873.0,0.09019493]
[1765227802297,0.00116517,90874.0,90873.0,0.1763815]
[1765227802499,0.00116517,90874.0,90873.0,0.09019493]
[1765227802909,0.00116517,90874.0,90873.0,0.21139493]
[1765227805997,0.0109999,90903.0,90873.0,0.21139493]
[1765227805998,0.05888468,90910.0,90909.0,0.05513]
[1765227806205,0.05634021,90913.0,90912.0,0.05513]
[1765227806795,0.05634021,90913.0,90899.0,0.56837]
[1765227806796,0.05612,90900.0,90899.0,0.56837]
[1765227807405,0.05612,90900.0,90899.0,0.65635336]
[1765227807593,0.05612,90900.0,90899.0,0.08798336]
[1765227807795,0.05612,90891.0,90890.0,0.05529507]
[1765227807994,0.0671213,90891.0,90890.0,0.00016507]
[1765227808802,0.0954084,90891.0,90890.0,0.00016507]
[1765227809504,0.0954084,90891.0,90890.0,0.00216507]
[1765227811321,0.0954084,90891.0,90873.0,0.01122153]
[1765227811322,0.0671233,90874.0,90873.0,0.06635153]
[1765227812408,0.09547394,90874.0,90873.0,0.06635153]
[1765227813103,0.09547394,90874.0,90873.0,0.06935153]
[1765227813311,0.09547394,90874.0,90873.0,0.01422153]
[1765227813610,0.09547394,90874.0,90873.0,0.13542153]
[1765227813804,0.09547394,90874.0,90873.0,0.19055153]
[1765227816303,0.09547394,90874.0,90873.0,0.13542153]
[1765227817800,0.0110038,90870.0,90864.0,0.00016507]
[1765227818000,0.0671244,90865.0,90864.0,0.00016507]
[1765227818207,0.0671272,90842.0,90841.0,0.05513]
[1765227818413,0.0671272,90842.0,90840.0,0.00110084]
[1765227818414,0.05612,90841.0,90840.0,0.00110084]
[1765227818612,0.08447064,90841.0,90840.0,4e-08]
[1765227818817,0.08447064,90841.0,90840.0,0.01119069]
[1765227819017,0.08459469,90841.0,90840.0,0.01119069]
[1765227819919,0.08559469,90841.0,90840.0,0.06632069]
[1765227820304,0.02947469,90841.0,90840.0,0.06632069]
[1765227820511,0.03047469,90841.0,90840.0,0.06632069]
[1765227820811,0.08659469,90841.0,90840.0,0.06632069]
[1765227821213,0.08559469,90841.0,90840.0,0.06632069]
[1765227821812,0.08559469,90841.0,90840.0,0.03831069]
[1765227822004,0.08559469,90841.0,90840.0,0.06632069]
[1765227822214,0.08659469,90841.0,90840.0,0.06632069]
[1765227822611,0.08559469,90841.0,90840.0,0.06632069]
[1765227822921,0.08759469,90841.0,90840.0,0.06632069]
[1765227823819,0.05857469,90841.0,90840.0,0.06632069]
[1765227824620,0.08734469,90841.0,90840.0,0.06632069]
[1765227825427,0.05857469,90841.0,90840.0,0.06632069]
[1765227826317,0.03022405,90841.0,90840.0,0.06632069]
[1765227828419,0.05899405,90841.0,90840.0,0.18752069]
[1765227828820,0.03022405,90841.0,90840.0,0.18752069]
[1765227829213,0.05899405,90841.0,90840.0,0.16064069]
[1765227829914,0.05799405,90841.0,90840.0,0.18874069]
[1765227830108,0.05899405,90841.0,90840.0,0.16064069]
[1765227830423,0.0814284,90832.0,90831.0,0.00016507]
[1765227830718,0.0814284,90832.0,90831.0,0.0113627]
[1765227833715,0.0814284,90832.0,90831.0,0.0677127]
[1765227833914,0.0694184,90832.0,90831.0,0.0677127]
[1765227836720,0.0873884,90832.0,90831.0,0.0396127]
[1765227837025,0.0873884,90832.0,90831.0,0.0113627]
[1765227837923,0.0873884,90832.0,90831.0,0.0677127]
[1765227837924,0.0694184,90832.0,90831.0,0.0677127]
[1765227838126,0.0110084,90832.0,90831.0,0.0677127]
[1765227839127,0.00012405,90841.0,90840.0,0.06492]
[1765227839327,0.01113135,90841.0,90840.0,0.06492]
[1765227839824,0.00012405,90841.0,90840.0,0.06492]
[1765227840620,0.00012405,90841.0,90840.0,0.06592]
[1765227841126,0.00012405,90841.0,90840.0,0.06792]
[1765227841526,0.00012405,90841.0,90840.0,0.06592]
[1765227841715,0.04039127,90850.0,90849.0,0.05945]
[1765227841921,0.06916127,90850.0,90849.0,0.05945]
[1765227842226,0.01117127,90850.0,90849.0,0.05945]
[1765227843022,0.00016507,90850.0,90849.0,0.15979095]
[1765227843319,0.00016507,90850.0,90849.0,0.0704563]
[1765227844124,0.00016507,90850.0,90849.0,0.0714563]
[1765227844625,0.00016507,90850.0,90849.0,0.06145]
[1765227845021,0.05815507,90850.0,90849.0,0.05945]
[1765227845220,0.05815507,90850.0,90849.0,0.1502705]
[1765227846332,0.05815507,90850.0,90849.0,0.1512705]
[1765227846525,0.05815507,90850.0,90849.0,0.1482705]
[1765227846829,0.05815507,90850.0,90849.0,0.1492705]
[1765227847019,0.05815507,90850.0,90849.0,0.1472705]
[1765227848324,0.08595128,90850.0,90849.0,0.0878205]
[1765227848518,0.08595128,90850.0,90849.0,0.06113]
[1765227848930,0.05718128,90850.0,90849.0,0.06113]
[1765227849133,0.05718128,90850.0,90849.0,0.14837829]
[1765227849427,0.08595128,90850.0,90849.0,0.02993]
[1765227849635,0.08595128,90850.0,90849.0,0.06113]
[1765227854029,0.08595128,90850.0,90849.0,0.14892409]
[1765227854339,0.08595128,90850.0,90849.0,0.08779409]
[1765227854537,0.08595128,90850.0,90849.0,0.02742]
[1765227854727,0.08595128,90850.0,90849.0,0.05662]
[1765227856330,0.05718128,90850.0,90849.0,0.05662]
[1765227856530,0.05718128,90850.0,90849.0,0.14619249]
[1765227856731,0.05718128,90850.0,90849.0,0.05662]
[1765227857537,0.08685128,90850.0,90849.0,0.05662]
[1765227859543,0.08685128,90850.0,90849.0,0.14465702]
[1765227859730,0.08685128,90850.0,90849.0,0.05762]
[1765227862236,0.08685128,90850.0,90849.0,0.1470955]
[1765227862438,0.08685128,90850.0,90849.0,0.05762]
[1765227864242,0.08685128,90850.0,90849.0,0.001]
[1765227864540,0.0705984,90832.0,90831.0,0.0679827]
[1765227865151,0.05959,90832.0,90831.0,0.0679827]
[1765227865338,0.0110082,90834.0,90833.0,0.05662]
[1765227865942,0.0409282,90834.0,90833.0,0.05662]
[1765227866548,0.0409282,90834.0,90833.0,0.06062]
[1765227866747,0.0705982,90834.0,90833.0,0.06062]
[1765227866932,0.02992,90834.0,90833.0,0.06062]
[1765227867138,0.0295668,90846.0,90837.0,0.0676276]
[1765227867139,0.05959,90838.0,90837.0,0.0676276]
[1765227867432,0.08755286,90838.0,90837.0,0.0676276]
[1765227867939,0.05959,90838.0,90837.0,0.0676276]
[1765227868637,0.05959,90838.0,90837.0,0.0716276]
[1765227869246,0.0875651,90838.0,90837.0,0.0716276]
[1765227869741,0.0279751,90838.0,90837.0,0.0716276]
[1765227869948,0.0578951,90838.0,90837.0,0.0716276]
[1765227870138,0.02992,90838.0,90837.0,0.0716276]
[1765227870339,0.0409272,90842.0,90841.0,0.0676273]
[1765227870646,0.06890198,90842.0,90841.0,0.0676273]
[1765227871541,0.09857198,90842.0,90841.0,0.0686273]
[1765227871751,0.09857198,90842.0,90841.0,0.0696273]
[1765227871941,0.0705972,90842.0,90841.0,0.0696273]
[1765227873046,0.0705972,90842.0,90841.0,0.05862]
[1765227873545,0.09857301,90842.0,90841.0,0.05862]
[1765227875951,0.09857301,90842.0,90841.0,0.0696273]
[1765227876253,0.09857301,90842.0,90841.0,0.05862]
[1765227877547,0.00016507,90850.0,90842.0,0.0110072]
[1765227877548,0.0110069,90845.0,90842.0,0.0110072]
[1765227877850,0.0110069,90845.0,90844.0,0.05662]
[1765227878050,0.0409269,90845.0,90844.0,0.05662]
[1765227878257,0.06891067,90845.0,90844.0,0.05662]
[1765227878452,0.09858067,90845.0,90844.0,0.05662]
[1765227879160,0.03899067,90845.0,90844.0,0.05662]
[1765227879450,0.02798377,90845.0,90844.0,0.05762]
[1765227879853,0.0110066,90848.0,90847.0,0.05662]
[1765227880556,0.03899005,90848.0,90847.0,0.05662]
[1765227880754,0.0110066,90848.0,90847.0,0.05662]
[1765227881346,0.05975507,90850.0,90849.0,0.05662]
[1765227881546,0.08773485,90850.0,90849.0,0.05662]
[1765227882746,0.02814485,90850.0,90849.0,0.05662]
[1765227883255,0.00110054,90865.0,90864.0,0.0670145]
[1765227884249,0.0844516,90888.0,90887.0,0.05601]
[1765227884962,0.0844516,90888.0,90887.0,0.02787]
[1765227885658,0.0884516,90888.0,90887.0,0.02787]
[1765227886062,0.0894516,90888.0,90887.0,0.02787]
[1765227886454,0.07845,90888.0,90887.0,0.0388717]
[1765227886661,0.06175,90888.0,90887.0,0.06723405]
[1765227887852,0.005,90888.0,90887.0,0.06723405]
[1765227888056,0.03459,90888.0,90887.0,0.06723405]
[1765227888351,0.06175,90888.0,90887.0,0.06723405]
[1765227888754,0.005,90888.0,90887.0,0.06723405]
[1765227889166,0.00016507,90897.0,90896.0,0.05601]
[1765227889465,0.00016507,90897.0,90896.0,0.5801706]
[1765227890167,0.05691507,90897.0,90896.0,0.5801706]
[1765227890357,0.05991507,90897.0,90896.0,0.5801706]
[1765227890558,0.05991507,90897.0,90896.0,0.05601]
[1765227890859,0.00316507,90897.0,90896.0,0.05601]
[1765227891268,0.00916507,90897.0,90896.0,0.05601]
[1765227892164,0.00598553,90897.0,90896.0,0.05601]
[1765227893266,0.0405897,90904.0,90903.0,0.05601]
[1765227893570,0.0677497,90904.0,90903.0,0.05601]
[1765227894874,0.0677497,90904.0,90903.0,0.05701]
[1765227895263,0.0677497,90904.0,90903.0,0.05801]
[1765227896366,0.0677497,90904.0,90903.0,0.05701]
[1765227896563,0.0677497,90904.0,90903.0,0.05901]
[1765227896872,0.0677497,90904.0,90903.0,0.05801]
[1765227897467,0.05675,90904.0,90903.0,0.05801]
[1765227898574,0.00010907,90906.0,90905.0,0.05601]
[1765227899072,0.05685907,90906.0,90905.0,0.05601]
[1765227899970,0.05685907,90906.0,90905.0,0.05701]
[1765227900177,0.00010907,90906.0,90905.0,0.05701]
[1765227900483,0.00010907,90906.0,90905.0,0.05901]
[1765227900663,0.00010907,90906.0,90905.0,0.05901004]
[1765227901263,0.00010907,90906.0,90905.0,0.05901]
[1765227901462,0.05826907,90906.0,90905.0,0.05901]
[1765227901666,0.00010907,90906.0,90905.0,0.05901]
[1765227902163,0.05826907,90906.0,90905.0,0.05901]
[1765227902567,0.05826907,90906.0,90905.0,0.003]
[1765227903564,0.0691605,90897.0,90896.0,0.00016507]
[1765227903771,0.0691632,90875.0,90874.0,0.0288]
[1765227904071,0.05816,90873.0,90872.0,0.18576]
[1765227904372,0.05816,90873.0,90872.0,0.21456]
[1765227904571,0.05816,90873.0,90872.0,0.03976696]
[1765227904965,0.05816,90873.0,90872.0,0.06827696]
[1765227906172,0.05816,90873.0,90872.0,0.06927696]
[1765227906373,0.0297,90873.0,90872.0,0.06927696]
[1765227906670,0.0297,90873.0,90872.0,0.06827696]
[1765227906871,0.0297,90873.0,90872.0,0.06927696]
[1765227907178,0.05816,90879.0,90878.0,0.05731]
[1765227907986,0.00016507,90882.0,90881.0,0.05731]
[1765227909673,0.00016507,90882.0,90881.0,0.05831]
[1765227912479,0.05934507,90882.0,90881.0,0.05831]
[1765227914483,0.05934507,90882.0,90881.0,0.0120025]
[1765227914870,0.00016507,90882.0,90881.0,0.0673225]
[1765227915072,0.0691997,90904.0,90903.0,0.05532]
[1765227915284,0.08599088,90904.0,90903.0,0.05532]
[1765227915487,0.05651088,90904.0,90903.0,0.05532]
[1765227916073,0.02779088,90904.0,90903.0,0.14362501]
[1765227916274,0.09099088,90904.0,90903.0,0.02817]
[1765227916578,0.0582,90898.0,90897.0,0.0663205]
[1765227917377,0.0582,90903.0,90902.0,0.05532]
[1765227917573,0.08599303,90903.0,90902.0,0.05532]
[1765227918977,0.08899303,90903.0,90902.0,0.05532]
[1765227919479,0.0582,90896.0,90895.0,0.05532]
[1765227919878,0.02872,90896.0,90895.0,0.05532]
[1765227920181,0.008,90903.0,90902.0,0.0663199]
[1765227920377,0.03579051,90903.0,90902.0,0.0663199]
[1765227920589,0.03279051,90903.0,90902.0,0.0663199]
[1765227920884,0.02779051,90903.0,90902.0,0.0663199]
[1765227921079,0.02872,90912.0,90911.0,0.0663188]
[1765227921272,0.08599016,90912.0,90911.0,0.0663188]
[1765227922383,0.00032928,90913.0,90912.0,0.07188]
[1765227923577,0.00132928,90913.0,90912.0,0.07188]
[1765227924377,0.00232928,90913.0,90912.0,0.07188]
[1765227924894,0.0163,90936.0,90935.0,0.0663159]
[1765227924895,0.0582,90936.0,90935.0,0.0663159]
[1765227925085,0.00109963,90940.0,90939.0,0.0663154]
[1765227925386,0.0582,90953.0,90952.0,0.0663138]
[1765227925603,0.00109933,90965.0,90964.0,0.0663124]
[1765227925781,0.00109933,90965.0,90964.0,0.5763524]
[1765227926389,0.0582,90977.0,90976.0,0.0663109]
[1765227926584,0.0582,90977.0,90976.0,0.05532]
[1765227927689,0.0622,90977.0,90976.0,0.05532]
[1765227928195,0.004,90977.0,90976.0,0.05532]
[1765227929383,0.01,90977.0,90976.0,0.05532]
[1765227929586,0.0154864,90999.0,90990.0,0.0109892]
[1765227929892,0.0582,90991.0,90990.0,0.0663092]
[1765227930087,0.0582,90999.0,90995.0,0.0109886]
[1765227930388,2.0,91000.0,90999.0,0.05532]
[1765227930585,2.0,91000.0,90989.0,0.2269599]
[1765227930586,0.0109882,90999.0,90996.0,0.50388]
[1765227930785,0.0582,90997.0,90996.0,0.53205]
[1765227931095,0.0582,90986.0,90985.0,0.00016488]
[1765227932483,0.0582,90986.0,90985.0,0.05548488]
[1765227933481,0.0642,90986.0,90985.0,0.05548488]
[1765227933691,0.006,90986.0,90985.0,0.05548488]
[1765227934191,0.01,90986.0,90985.0,0.05548488]
[1765227935588,0.0682,90986.0,90985.0,0.00016488]
[1765227938894,0.0682,90986.0,90985.0,0.05548488]
[1765227939279,0.0682,90986.0,90985.0,0.02833488]
[1765227939484,0.0682,90986.0,90985.0,0.00016488]
[1765227939696,0.0682,90986.0,90985.0,0.05548488]
[1765227939881,0.01,90986.0,90985.0,0.05548488]
[1765227940081,0.01,90986.0,90985.0,0.06647478]
[1765227942497,2.0,91000.0,90999.0,0.0676382]
[1765227942697,1.98817006,91000.0,90999.0,0.0676382]
[1765227943701,1.99317006,91000.0,90999.0,0.0676382]
[1765227943905,0.05644,90991.0,90985.0,0.00016488]
[1765227944196,0.0674298,90986.0,90985.0,0.00016488]
[1765227944400,0.0109913,90973.0,90972.0,0.51272]
[1765227944599,0.05644,90971.0,90970.0,0.2553299]
[1765227944793,0.0109921,90967.0,90963.0,0.2269599]
[1765227944995,0.01631,90970.0,90958.0,0.0109931]
[1765227944996,0.05644,90959.0,90958.0,0.0109931]
[1765227945301,0.05644,90950.0,90949.0,0.2553299]
[1765227945513,0.05644,90945.0,90940.0,0.23812008]
[1765227945693,0.02765,90944.0,90943.0,0.0392749]
[1765227945894,0.02765,90944.0,90943.0,0.2813149]
[1765227946094,0.02765,90944.0,90943.0,0.3096849]
[1765227946501,0.05644,90952.0,90951.0,0.010994]
[1765227946701,0.05644,90952.0,90951.0,0.039364]
[1765227946897,0.0451,90948.0,90947.0,0.0109944]
[1765227947199,0.07275,90948.0,90947.0,0.0109944]
[1765227947399,0.05644,90948.0,90947.0,0.0109944]
[1765227948303,0.05644,90948.0,90947.0,0.0393644]
[1765227949097,0.05644,90948.0,90947.0,0.0403644]
[1765227949298,0.07291424,90959.0,90958.0,0.0109931]
[1765227949597,0.05644,90951.0,90950.0,0.010994]
[1765227950692,0.00016424,90959.0,90958.0,0.0676431]
[1765227950892,0.02781424,90959.0,90958.0,0.0676431]
[1765227951402,0.02881424,90959.0,90958.0,0.0726431]
[1765227952700,0.05760424,90959.0,90958.0,0.0726431]
[1765227952905,0.07391424,90959.0,90958.0,0.0159931]
[1765227953607,0.07391424,90959.0,90958.0,0.0443631]
[1765227954598,0.07391424,90959.0,90958.0,0.0726431]
[1765227954794,0.05760424,90959.0,90958.0,0.0726431]
[1765227955009,0.07391424,90959.0,90958.0,0.0159931]
[1765227955504,0.05760424,90959.0,90958.0,0.0726431]
[1765227956904,0.05760424,90959.0,90958.0,0.005]
[1765227957208,0.08466788,90959.0,90958.0,0.005]
[1765227957410,0.08466788,90959.0,90958.0,0.06165]
[1765227957701,0.08466788,90959.0,90958.0,0.005]
[1765227958095,0.08366788,90959.0,90956.0,0.0109933]
[1765227958297,0.05644,90957.0,90956.0,0.0109933]
[1765227958498,0.08350364,90957.0,90956.0,0.0109933]
[1765227958906,0.02706364,90957.0,90953.0,0.0109937]
[1765227959104,0.00016424,90959.0,90940.0,0.00016488]
[1765227959105,0.010995,90943.0,90940.0,0.00016488]
[1765227959402,0.010995,90943.0,90921.0,0.0109976]
[1765227959403,0.0386458,90936.0,90921.0,0.0109976]
[1765227959611,0.0109979,90919.0,90910.0,0.2269599]
[1765227959813,0.05644,90913.0,90912.0,0.02837]
[1765227960306,0.05644,90913.0,90912.0,0.06771177]
[1765227960518,0.05644,90913.0,90912.0,0.01106177]
[1765227960709,0.05652519,90913.0,90912.0,0.02206047]
[1765227960903,0.05652519,90913.0,90912.0,0.0109987]
[1765227961209,0.05652519,90913.0,90912.0,0.04220451]
[1765227961402,0.05652519,90913.0,90912.0,0.004]
[1765227961711,0.05652519,90913.0,90912.0,0.018]
[1765227962305,0.05652519,90913.0,90912.0,0.02922231]
[1765227963309,0.06752379,90913.0,90912.0,0.02922231]
[1765227964203,0.05652519,90913.0,90912.0,0.02922231]
[1765227964404,0.05652519,90913.0,90912.0,0.04022101]
[1765227964609,0.05652519,90913.0,90912.0,0.06761101]
[1765227965407,0.05652519,90913.0,90912.0,0.02922231]
[1765227969231,0.05652519,90913.0,90912.0,0.08398231]
[1765227970327,8.519e-05,90913.0,90912.0,0.08398231]
[1765227971924,0.00016498,90922.0,90921.0,0.0657576]
[1765227972117,0.05694,90943.0,90942.0,0.065755]
[1765227972316,0.05642,90936.0,90935.0,0.54155]
[1765227972617,0.05642,90936.0,90935.0,0.5820859]